[Event "Vastgota Open 2022"]
[Site "Skara stadshotell, Jarnvagsgatan 5, Skara, Sweden"]
[Date "2022.10.30"]
[Round "8.3"]
[White "Thyberg, Andre"]
[Black "Madebrink, Lars"]
[Result "1/2-1/2"]
[TimeControl "30 minutes + 10 seconds per move from move one."]
[WhiteFideId "1764764"]
[BlackFideId "1701347"]
[WhiteElo "1632"]
[BlackElo "2094"]

1. e4 {[%clk 00:30:16]} {[%emt 00:00:03]} c5 {[%clk 00:30:13]} {[%emt
00:00:07]} 2. c3 {[%clk 00:30:20]} {[%emt 00:00:06]} Nf6 {[%clk 00:29:59]}
{[%emt 00:00:25]} 3. e5 {[%clk 00:30:18]} {[%emt 00:00:12]} Nd5 {[%clk
00:30:04]} {[%emt 00:00:04]} 4. d4 {[%clk 00:30:20]} {[%emt 00:00:09]} cxd4
{[%clk 00:29:47]} {[%emt 00:00:26]} 5. Nf3 {[%clk 00:30:27]} {[%emt 00:00:06]}
e6 {[%clk 00:29:41]} {[%emt 00:00:15]} 6. Bc4 {[%clk 00:30:32]} {[%emt
00:00:06]} Nb6 {[%clk 00:26:07]} {[%emt 00:03:43]} 7. Bb3 {[%clk 00:30:35]}
{[%emt 00:00:06]} d6 {[%clk 00:26:01]} {[%emt 00:00:16]} 8. exd6 {[%clk
00:29:48]} {[%emt 00:00:58]} Bxd6 {[%clk 00:25:17]} {[%emt 00:00:53]} 9. Nxd4
{[%clk 00:29:10]} {[%emt 00:00:49]} a6 {[%clk 00:22:46]} {[%emt 00:02:41]} 10.
Be3 {[%clk 00:26:08]} {[%emt 00:03:12]} Nd5 {[%clk 00:19:56]} {[%emt 00:02:59]}
11. Bxd5 {[%clk 00:25:32]} {[%emt 00:00:47]} exd5 {[%clk 00:20:04]} {[%emt
00:00:02]} 12. Nd2 {[%clk 00:25:13]} {[%emt 00:00:27]} Nc6 {[%clk 00:19:46]}
{[%emt 00:00:29]} 13. N2f3 {[%clk 00:24:09]} {[%emt 00:01:14]} O-O {[%clk
00:18:59]} {[%emt 00:00:58]} 14. O-O {[%clk 00:23:25]} {[%emt 00:00:53]} Bg4
{[%clk 00:18:53]} {[%emt 00:00:15]} 15. Qa4 {[%clk 00:21:01]} {[%emt 00:02:36]}
Qd7 {[%clk 00:15:03]} {[%emt 00:03:58]} 16. Qc2 {[%clk 00:16:24]} {[%emt
00:04:49]} Rfe8 {[%clk 00:14:38]} {[%emt 00:00:34]} 17. Ng5 {[%clk 00:15:17]}
{[%emt 00:01:17]} g6 {[%clk 00:13:39]} {[%emt 00:01:10]} 18. Qd2 {[%clk
00:13:44]} {[%emt 00:01:41]} Ne5 {[%clk 00:11:04]} {[%emt 00:02:46]} 19. h3
{[%clk 00:12:50]} {[%emt 00:01:05]} Nc4 {[%clk 00:07:39]} {[%emt 00:03:35]} 20.
Qc1 {[%clk 00:12:45]} {[%emt 00:00:15]} Bf5 {[%clk 00:07:23]} {[%emt 00:00:25]}
21. Bf4 {[%clk 00:10:41]} {[%emt 00:02:15]} Bd3 {[%clk 00:04:58]} {[%emt
00:02:33]} 22. Rd1 {[%clk 00:09:39]} {[%emt 00:01:14]} Be4 {[%clk 00:03:12]}
{[%emt 00:01:55]} 23. Nxe4 {[%clk 00:06:59]} {[%emt 00:02:50]} Rxe4 {[%clk
00:03:05]} {[%emt 00:00:18]} 24. Bxd6 {[%clk 00:06:48]} {[%emt 00:00:21]} Qxd6
{[%clk 00:02:41]} {[%emt 00:00:32]} 25. Qg5 {[%clk 00:06:00]} {[%emt 00:00:59]}
Re5 {[%clk 00:02:23]} {[%emt 00:00:29]} 26. Qg3 {[%clk 00:05:15]} {[%emt
00:00:55]} Nxb2 {[%clk 00:01:50]} {[%emt 00:00:43]} 27. Rdb1 {[%clk 00:05:24]}
Nc4 {[%clk 00:01:51]} {[%emt 00:00:08]} 28. Rxb7 {[%clk 00:05:21]} {[%emt
00:00:13]} Rae8 {[%clk 00:01:59]} {[%emt 00:00:03]} 29. Nf3 {[%clk 00:05:01]}
{[%emt 00:00:31]} Re2 {[%clk 00:01:31]} {[%emt 00:00:36]} 30. Qxd6 {[%clk
00:04:39]} {[%emt 00:00:33]} Nxd6 {[%clk 00:01:40]} {[%emt 00:00:01]} 31. Rb6
{[%clk 00:04:34]} {[%emt 00:00:16]} Ne4 {[%clk 00:01:47]} {[%emt 00:00:03]} 32.
Rxa6 {[%clk 00:04:12]} {[%emt 00:00:32]} Nxf2 {[%clk 00:01:47]} {[%emt
00:00:09]} 33. Nd4 {[%clk 00:03:54]} {[%emt 00:00:28]} Rb2 {[%clk 00:01:49]}
{[%emt 00:00:07]} 34. Rf1 {[%clk 00:03:49]} {[%emt 00:00:16]} Nd3 {[%clk
00:01:48]} {[%emt 00:00:10]} 35. Ra7 {[%clk 00:03:51]} {[%emt 00:00:09]} f5
{[%clk 00:01:31]} {[%emt 00:00:27]} 36. Rd7 {[%emt 00:01:09]} Re5 {[%clk
00:01:05]} 37. a4 {[%clk 00:03:22]} {[%emt 00:00:15]} Nc5 {[%clk 00:01:00]}
{[%emt 00:00:15]} 38. Rd8+ {[%clk 00:03:23]} {[%emt 00:00:10]} Kg7 {[%clk
00:01:08]} {[%emt 00:00:02]} 39. a5 {[%clk 00:03:33]} Ra2 {[%clk 00:01:09]}
{[%emt 00:00:09]} 40. Rb1 {[%clk 00:03:32]} {[%emt 00:00:11]} Nd3 {[%clk
00:01:03]} {[%emt 00:00:14]} 41. Rf1 {[%clk 00:02:26]} {[%emt 00:01:16]} Ne1
{[%clk 00:00:56]} {[%emt 00:00:18]} 42. Rf2 {[%clk 00:02:23]} {[%emt 00:00:13]}
Ra1 {[%clk 00:00:58]} {[%emt 00:00:08]} 43. Kh2 {[%clk 00:02:19]} {[%emt
00:00:14]} Nd3 {[%clk 00:00:57]} {[%emt 00:00:11]} 44. Rd2 {[%clk 00:02:15]}
{[%emt 00:00:15]} Nf4 {[%clk 00:01:01]} {[%emt 00:00:05]} 45. Nf3 {[%clk
00:02:10]} {[%emt 00:00:15]} Re3 {[%clk 00:00:43]} {[%emt 00:00:27]} 46. Ng5
{[%clk 00:01:20]} {[%emt 00:01:01]} Rxc3 {[%clk 00:00:42]} {[%emt 00:00:11]} 47.
Rd7+ {[%clk 00:01:28]} {[%emt 00:00:02]} Kf6 {[%clk 00:00:43]} {[%emt
00:00:08]} 48. Nxh7+ {[%clk 00:01:23]} {[%emt 00:00:16]} Ke6 {[%clk 00:00:52]}
49. Nf8+ {[%clk 00:01:32]} {[%emt 00:00:02]} Kf6 {[%clk 00:00:53]} {[%emt
00:00:08]} 50. Rb2 {[%clk 00:01:31]} {[%emt 00:00:12]} Rcc1 {[%clk 00:00:51]}
{[%emt 00:00:12]} 51. Rb6+ {[%clk 00:01:19]} {[%emt 00:00:23]} Ke5 {[%clk
00:00:51]} {[%emt 00:00:09]} 52. Nxg6+ {[%clk 00:00:55]} {[%emt 00:00:34]} Nxg6
{[%clk 00:00:58]} {[%emt 00:00:04]} 53. Rxg6 {[%clk 00:01:04]} Rh1+ {[%clk
00:01:01]} {[%emt 00:00:06]} 54. Kg3 {[%clk 00:01:13]} {[%emt 00:00:01]} Rxa5
{[%clk 00:00:58]} {[%emt 00:00:14]} 55. Rgd6 {[%clk 00:00:58]} {[%emt
00:00:24]} Re1 {[%clk 00:00:51]} {[%emt 00:00:15]} 56. Kh4 {[%clk 00:00:44]}
{[%emt 00:00:25]} Re4+ {[%clk 00:00:46]} {[%emt 00:00:15]} 57. Kg5 {[%clk
00:00:33]} {[%emt 00:00:22]} 1/2-1/2

[Event "Vastgota Open 2022"]
[Site "Skara stadshotell, Jarnvagsgatan 5, Skara, Sweden"]
[Date "2022.10.30"]
[Round "8.4"]
[White "Kleimark, Anders"]
[Black "Aroven, Mikael"]
[Result "0-1"]
[TimeControl "30 minutes + 10 seconds per move from move one."]
[WhiteFideId "1709968"]
[BlackFideId "1709534"]
[WhiteElo "2048"]
[BlackElo "2089"]

1. d4 {[%clk 00:30:17]} {[%emt 00:00:01]} Nf6 {[%clk 00:30:19]} {[%emt
00:00:02]} 2. c4 {[%clk 00:30:12]} {[%emt 00:00:15]} e6 {[%clk 00:30:27]}
{[%emt 00:00:02]} 3. g3 {[%clk 00:30:01]} {[%emt 00:00:21]} c5 {[%clk
00:30:25]} {[%emt 00:00:12]} 4. d5 {[%clk 00:29:40]} {[%emt 00:00:30]} exd5
{[%clk 00:30:27]} {[%emt 00:00:08]} 5. cxd5 {[%clk 00:29:44]} {[%emt 00:00:07]}
d6 {[%clk 00:30:34]} {[%emt 00:00:03]} 6. Nc3 {[%clk 00:29:38]} {[%emt
00:00:16]} g6 {[%clk 00:30:40]} {[%emt 00:00:04]} 7. Bg2 {[%clk 00:29:37]}
{[%emt 00:00:08]} Bg7 {[%clk 00:30:48]} {[%emt 00:00:05]} 8. Nf3 {[%clk
00:29:29]} {[%emt 00:00:17]} O-O {[%clk 00:30:55]} {[%emt 00:00:05]} 9. O-O
{[%clk 00:29:33]} {[%emt 00:00:05]} Re8 {[%clk 00:31:02]} {[%emt 00:00:03]} 10.
Bf4 {[%clk 00:29:39]} {[%emt 00:00:04]} a6 {[%clk 00:31:10]} {[%emt 00:00:03]}
11. a4 {[%clk 00:29:43]} {[%emt 00:00:05]} b6 {[%clk 00:30:55]} {[%emt
00:00:26]} 12. Re1 {[%clk 00:26:54]} {[%emt 00:02:57]} Nh5 {[%clk 00:29:48]}
{[%emt 00:01:18]} 13. Bg5 {[%clk 00:26:52]} {[%emt 00:00:12]} Qc7 {[%clk
00:29:56]} {[%emt 00:00:02]} 14. Rc1 {[%clk 00:24:47]} {[%emt 00:02:15]} h6
{[%clk 00:29:42]} {[%emt 00:00:24]} 15. Be3 {[%clk 00:24:08]} {[%emt 00:00:48]}
Nd7 {[%clk 00:28:38]} {[%emt 00:01:15]} 16. b4 {[%clk 00:21:55]} {[%emt
00:02:22]} Qb8 {[%clk 00:28:08]} {[%emt 00:00:40]} 17. bxc5 {[%clk 00:20:16]}
{[%emt 00:01:50]} bxc5 {[%clk 00:28:15]} {[%emt 00:00:03]} 18. Rb1 {[%clk
00:18:53]} {[%emt 00:01:32]} Qc7 {[%clk 00:27:24]} {[%emt 00:01:02]} 19. Qd2
{[%clk 00:18:18]} {[%emt 00:00:45]} Kh7 {[%clk 00:26:43]} {[%emt 00:00:51]} 20.
g4 {[%clk 00:17:27]} {[%emt 00:01:00]} Nhf6 {[%clk 00:26:36]} {[%emt 00:00:18]}
21. g5 {[%clk 00:17:35]} {[%emt 00:00:02]} hxg5 {[%clk 00:21:56]} {[%emt
00:04:50]} 22. Nxg5+ {[%clk 00:17:33]} {[%emt 00:00:11]} Kg8 {[%clk 00:22:05]}
23. Nce4 {[%clk 00:15:43]} {[%emt 00:02:01]} Ne5 {[%clk 00:21:08]} {[%emt
00:01:07]} 24. Rec1 {[%clk 00:14:35]} {[%emt 00:01:19]} Nxe4 {[%clk 00:20:38]}
{[%emt 00:00:40]} 25. Nxe4 {[%clk 00:14:34]} {[%emt 00:00:10]} Bf5 {[%clk
00:19:47]} {[%emt 00:01:02]} 26. Rb3 {[%clk 00:09:50]} {[%emt 00:04:55]} Bxe4
{[%clk 00:19:54]} {[%emt 00:00:03]} 27. Bxe4 {[%clk 00:09:58]} {[%emt
00:00:02]} Rab8 {[%clk 00:19:55]} {[%emt 00:00:07]} 28. Rxb8 {[%clk 00:08:43]}
{[%emt 00:01:26]} Rxb8 {[%clk 00:19:20]} {[%emt 00:00:45]} 29. Bd3 {[%clk
00:07:32]} {[%emt 00:01:21]} a5 {[%clk 00:12:36]} {[%emt 00:06:54]} 30. Bb5
{[%clk 00:07:19]} {[%emt 00:00:23]} Qc8 {[%clk 00:11:52]} {[%emt 00:00:53]} 31.
Bf4 {[%clk 00:06:47]} {[%emt 00:00:43]} Qg4+ {[%clk 00:11:52]} {[%emt
00:00:09]} 32. Bg3 {[%clk 00:06:53]} {[%emt 00:00:05]} Qb4 {[%clk 00:11:19]}
{[%emt 00:00:43]} 33. Qg5 {[%clk 00:06:06]} {[%emt 00:00:56]} f6 {[%clk
00:10:15]} {[%emt 00:01:15]} 34. Qe3 {[%clk 00:05:59]} {[%emt 00:00:17]} Kh7
{[%clk 00:07:12]} {[%emt 00:03:12]} 35. Bxe5 {[%clk 00:05:53]} {[%emt
00:00:17]} fxe5 {[%clk 00:07:15]} {[%emt 00:00:07]} 36. Qh3+ {[%clk 00:05:38]}
{[%emt 00:00:25]} Bh6 {[%clk 00:07:01]} {[%emt 00:00:25]} 37. Qd7+ {[%clk
00:05:26]} {[%emt 00:00:22]} Kh8 {[%clk 00:06:43]} {[%emt 00:00:27]} 38. Qxd6
{[%clk 00:04:17]} {[%emt 00:01:20]} Qg4+ {[%clk 00:06:11]} {[%emt 00:00:42]} 39.
Kh1 {[%clk 00:03:44]} {[%emt 00:00:42]} Bxc1 {[%clk 00:03:49]} {[%emt
00:02:32]} 40. Qxb8+ {[%clk 00:03:52]} {[%emt 00:00:03]} Kh7 {[%clk 00:03:57]}
{[%emt 00:00:02]} 41. Qc7+ {[%clk 00:03:40]} {[%emt 00:00:22]} Kh6 {[%clk
00:03:53]} {[%emt 00:00:15]} 42. Qxc5 {[%clk 00:02:47]} {[%emt 00:01:01]} Bf4
{[%clk 00:02:39]} {[%emt 00:01:24]} 43. Qf8+ {[%clk 00:02:33]} {[%emt
00:00:24]} Kg5 {[%clk 00:02:33]} {[%emt 00:00:15]} 44. Qe7+ {[%clk 00:02:22]}
{[%emt 00:00:21]} Kh6 {[%clk 00:02:40]} {[%emt 00:00:03]} 45. Qe6 {[%clk
00:01:45]} {[%emt 00:00:48]} Qh4 {[%clk 00:02:19]} {[%emt 00:00:30]} 46. h3
{[%clk 00:01:42]} {[%emt 00:00:15]} Qxf2 {[%clk 00:02:22]} {[%emt 00:00:07]}
0-1

[Event "Vastgota Open 2022"]
[Site "Skara stadshotell, Jarnvagsgatan 5, Skara, Sweden"]
[Date "2022.10.30"]
[Round "8.5"]
[White "Bellon Lopez, Juan Manuel"]
[Black "Danielsson, Fredrik"]
[Result "1-0"]
[TimeControl "30 minutes + 10 seconds per move from move one."]
[WhiteTitle "GM"]
[WhiteFideId "2200031"]
[BlackFideId "1729993"]
[WhiteElo "2347"]
[BlackElo "2082"]

1. d4 {[%clk 00:30:18]} {[%emt 00:00:01]} Nf6 {[%clk 00:30:15]} {[%emt
00:00:06]} 2. Bg5 {[%clk 00:30:21]} {[%emt 00:00:07]} Ne4 {[%clk 00:30:22]}
{[%emt 00:00:03]} 3. Bh4 {[%clk 00:30:30]} {[%emt 00:00:02]} g5 {[%clk
00:30:00]} {[%emt 00:00:31]} 4. f3 {[%clk 00:30:37]} {[%emt 00:00:03]} gxh4
{[%clk 00:29:43]} {[%emt 00:00:27]} 5. fxe4 {[%clk 00:30:45]} {[%emt 00:00:03]}
c5 {[%clk 00:29:42]} {[%emt 00:00:11]} 6. e3 {[%clk 00:30:53]} {[%emt
00:00:03]} Bh6 {[%clk 00:28:48]} {[%emt 00:01:04]} 7. d5 {[%clk 00:30:00]}
{[%emt 00:01:03]} Qb6 {[%clk 00:26:28]} {[%emt 00:02:30]} 8. Nd2 {[%clk
00:29:04]} {[%emt 00:01:05]} Qxb2 {[%clk 00:23:54]} {[%emt 00:02:44]} 9. Rb1
{[%clk 00:29:14]} {[%emt 00:00:02]} Qf6 {[%clk 00:24:00]} {[%emt 00:00:03]} 10.
Rb3 {[%clk 00:27:06]} {[%emt 00:02:19]} d6 {[%clk 00:23:44]} {[%emt 00:00:26]}
11. Ngf3 {[%clk 00:27:15]} Nd7 {[%clk 00:19:51]} {[%emt 00:04:04]} 12. Bb5
{[%clk 00:27:04]} {[%emt 00:00:21]} Rg8 {[%clk 00:16:08]} {[%emt 00:03:52]} 13.
Qe2 {[%clk 00:22:02]} {[%emt 00:05:11]} h3 {[%clk 00:11:04]} {[%emt 00:05:15]}
14. g3 {[%clk 00:21:49]} {[%emt 00:00:23]} Kf8 {[%clk 00:11:10]} {[%emt
00:00:04]} 15. Bxd7 {[%clk 00:19:31]} {[%emt 00:02:28]} Bxd7 {[%clk 00:11:18]}
{[%emt 00:00:02]} 16. e5 {[%clk 00:16:17]} {[%emt 00:03:23]} Qg6 {[%clk
00:09:22]} {[%emt 00:02:07]} 17. e6 {[%clk 00:13:12]} {[%emt 00:03:15]} fxe6
{[%clk 00:08:14]} {[%emt 00:01:18]} 18. O-O {[%clk 00:11:05]} {[%emt 00:02:17]}
Kg7 {[%clk 00:08:17]} {[%emt 00:00:06]} 19. Rxb7 {[%clk 00:10:06]} {[%emt
00:01:10]} Rgd8 {[%clk 00:07:56]} {[%emt 00:00:31]} 20. e4 {[%clk 00:08:03]}
{[%emt 00:02:12]} Kg8 {[%clk 00:06:33]} {[%emt 00:01:34]} 21. Nc4 {[%clk
00:06:45]} {[%emt 00:01:28]} Rab8 {[%clk 00:04:05]} {[%emt 00:02:38]} 22. Rxa7
{[%clk 00:05:33]} {[%emt 00:01:23]} Rb4 {[%clk 00:03:14]} {[%emt 00:01:01]} 23.
c3 {[%clk 00:05:13]} {[%emt 00:00:29]} Rxc4 {[%clk 00:01:50]} {[%emt 00:01:34]}
24. Qxc4 {[%clk 00:05:15]} {[%emt 00:00:08]} Be3+ {[%clk 00:01:58]} {[%emt
00:00:01]} 25. Kh1 {[%clk 00:05:16]} {[%emt 00:00:09]} exd5 {[%clk 00:02:06]}
{[%emt 00:00:02]} 26. Qxd5+ {[%clk 00:04:44]} {[%emt 00:00:41]} Be6 {[%clk
00:02:15]} {[%emt 00:00:02]} 27. Qd3 {[%clk 00:04:46]} {[%emt 00:00:08]} Bh6
{[%clk 00:01:01]} {[%emt 00:01:24]} 28. Rxe7 {[%clk 00:03:10]} {[%emt
00:01:45]} d5 {[%clk 00:00:17]} {[%emt 00:00:56]} 29. Ne5 {[%clk 00:02:04]}
{[%emt 00:01:16]} Qg5 {[%clk 00:00:11]} {[%emt 00:00:15]} 30. Rxe6 {[%clk
00:02:10]} {[%emt 00:00:05]} dxe4 {[%clk 00:00:19]} 31. Qxe4 {[%clk 00:02:10]}
{[%emt 00:00:10]} Qd2 {[%clk 00:00:12]} {[%emt 00:00:17]} 32. Ng4 {[%clk
00:01:32]} {[%emt 00:00:47]} Bg7 {[%clk 00:00:19]} {[%emt 00:00:04]} 33. Re8+
{[%clk 00:01:39]} {[%emt 00:00:03]} 1-0

[Event "Vastgota Open 2022"]
[Site "Skara stadshotell, Jarnvagsgatan 5, Skara, Sweden"]
[Date "2022.10.30"]
[Round "8.6"]
[White "Nilsson, Patrik"]
[Black "Johansson, Ulf"]
[Result "1-0"]
[TimeControl "30 minutes + 10 seconds per move from move one."]
[WhiteFideId "1708171"]
[BlackFideId "1701380"]
[WhiteElo "2085"]
[BlackElo "2183"]

1. d4 {[%clk 00:30:16]} {[%emt 00:00:03]} Nf6 {[%clk 00:30:18]} {[%emt
00:00:03]} 2. Bf4 {[%clk 00:30:16]} {[%emt 00:00:09]} g6 {[%clk 00:30:23]}
{[%emt 00:00:05]} 3. Nc3 {[%clk 00:30:19]} {[%emt 00:00:07]} Bg7 {[%clk
00:30:02]} {[%emt 00:00:31]} 4. e4 {[%clk 00:30:24]} {[%emt 00:00:05]} d6
{[%clk 00:30:03]} {[%emt 00:00:10]} 5. Qd2 {[%clk 00:30:10]} {[%emt 00:00:25]}
c6 {[%clk 00:27:24]} {[%emt 00:02:48]} 6. Bh6 {[%clk 00:30:05]} {[%emt
00:00:14]} Bxh6 {[%clk 00:26:38]} {[%emt 00:00:56]} 7. Qxh6 {[%clk 00:30:12]}
{[%emt 00:00:03]} Qa5 {[%clk 00:26:41]} {[%emt 00:00:08]} 8. O-O-O {[%clk
00:23:06]} {[%emt 00:07:16]} Be6 {[%clk 00:25:39]} {[%emt 00:01:11]} 9. a3
{[%clk 00:20:45]} {[%emt 00:02:32]} Nbd7 {[%clk 00:24:15]} {[%emt 00:01:34]} 10.
f3 {[%clk 00:17:10]} {[%emt 00:03:44]} O-O-O {[%clk 00:23:47]} {[%emt
00:00:37]} 11. g4 {[%clk 00:16:55]} {[%emt 00:00:26]} Nb6 {[%clk 00:21:33]}
{[%emt 00:02:23]} 12. Nge2 {[%clk 00:13:56]} {[%emt 00:03:09]} Bc4 {[%clk
00:20:36]} {[%emt 00:01:07]} 13. h4 {[%clk 00:13:34]} {[%emt 00:00:33]} Na4
{[%clk 00:13:26]} {[%emt 00:07:21]} 14. Nxa4 {[%clk 00:11:07]} {[%emt
00:02:36]} Bxe2 {[%clk 00:13:32]} {[%emt 00:00:03]} 15. Bxe2 {[%clk 00:10:54]}
{[%emt 00:00:23]} Qxa4 {[%clk 00:13:40]} {[%emt 00:00:02]} 16. Qe3 {[%clk
00:10:30]} {[%emt 00:00:34]} Nd7 {[%clk 00:13:15]} {[%emt 00:00:35]} 17. e5
{[%clk 00:09:55]} {[%emt 00:00:46]} Nb6 {[%clk 00:12:48]} {[%emt 00:00:37]} 18.
h5 {[%clk 00:08:55]} {[%emt 00:01:09]} Nd5 {[%clk 00:11:50]} {[%emt 00:01:08]}
19. Qe4 {[%clk 00:05:41]} {[%emt 00:03:24]} b5 {[%clk 00:11:57]} {[%emt
00:00:03]} 20. e6 {[%clk 00:05:18]} {[%emt 00:00:33]} f5 {[%clk 00:10:33]}
{[%emt 00:01:34]} 21. Qd3 {[%clk 00:05:07]} {[%emt 00:00:22]} fxg4 {[%clk
00:07:50]} {[%emt 00:02:53]} 22. fxg4 {[%clk 00:05:09]} {[%emt 00:00:08]} g5
{[%clk 00:07:54]} {[%emt 00:00:05]} 23. Bf3 {[%clk 00:04:41]} {[%emt 00:00:39]}
Qc4 {[%clk 00:06:33]} {[%emt 00:01:34]} 24. Qxc4 {[%clk 00:03:49]} {[%emt
00:00:59]} bxc4 {[%clk 00:06:41]} {[%emt 00:00:02]} 25. Bxd5 {[%clk 00:03:47]}
{[%emt 00:00:12]} cxd5 {[%clk 00:06:50]} {[%emt 00:00:02]} 26. Rdf1 {[%clk
00:03:36]} {[%emt 00:00:21]} Rdf8 {[%clk 00:06:58]} 27. Kd2 {[%clk 00:03:28]}
{[%emt 00:00:18]} Kd8 {[%clk 00:06:42]} {[%emt 00:00:26]} 28. Ke3 {[%clk
00:03:13]} {[%emt 00:00:25]} Rf6 {[%clk 00:06:40]} {[%emt 00:00:11]} 29. Rxf6
{[%clk 00:02:18]} {[%emt 00:01:05]} exf6 {[%clk 00:06:48]} {[%emt 00:00:02]} 30.
Rf1 {[%clk 00:02:18]} {[%emt 00:00:10]} Ke7 {[%clk 00:06:57]} {[%emt 00:00:02]}
31. Rf5 {[%clk 00:02:26]} Kxe6 {[%clk 00:06:56]} {[%emt 00:00:11]} 32. Kd2
{[%clk 00:02:34]} {[%emt 00:00:02]} Rb8 {[%clk 00:06:34]} {[%emt 00:00:32]} 33.
Kc3 {[%clk 00:02:39]} {[%emt 00:00:06]} a5 {[%clk 00:06:29]} {[%emt 00:00:14]}
34. b3 {[%clk 00:02:14]} {[%emt 00:00:34]} Rc8 {[%clk 00:05:52]} {[%emt
00:00:48]} 35. Kd2 {[%clk 00:02:11]} {[%emt 00:00:13]} Rc6 {[%clk 00:05:16]}
{[%emt 00:00:45]} 36. Rf1 {[%clk 00:02:15]} {[%emt 00:00:06]} Kf7 {[%clk
00:05:07]} {[%emt 00:00:20]} 37. Rf5 {[%clk 00:01:53]} {[%emt 00:00:31]} Ke6
{[%clk 00:05:16]} {[%emt 00:00:02]} 38. Rf1 {[%clk 00:02:02]} {[%emt 00:00:01]}
Rb6 {[%clk 00:05:04]} {[%emt 00:00:23]} 39. Kc3 {[%clk 00:02:06]} {[%emt
00:00:05]} Rb8 {[%clk 00:04:48]} {[%emt 00:00:28]} 40. Rf5 {[%clk 00:01:47]}
{[%emt 00:00:26]} h6 {[%clk 00:04:45]} {[%emt 00:00:14]} 41. bxc4 {[%clk
00:01:36]} {[%emt 00:00:21]} dxc4 {[%clk 00:04:33]} {[%emt 00:00:22]} 42. Rxa5
{[%clk 00:01:16]} {[%emt 00:00:30]} Rb1 {[%clk 00:04:40]} {[%emt 00:00:03]} 43.
Kxc4 {[%clk 00:00:28]} {[%emt 00:00:58]} Rg1 {[%clk 00:04:47]} {[%emt
00:00:02]} 44. Ra8 {[%clk 00:00:36]} {[%emt 00:00:03]} Rxg4 {[%clk 00:04:55]}
{[%emt 00:00:02]} 45. Rh8 {[%clk 00:00:41]} {[%emt 00:00:05]} Rh4 {[%clk
00:04:29]} {[%emt 00:00:36]} 46. Rxh6 {[%clk 00:00:49]} {[%emt 00:00:01]} g4
{[%clk 00:04:38]} {[%emt 00:00:01]} 47. a4 {[%clk 00:00:47]} {[%emt 00:00:13]}
Kf5 {[%clk 00:04:27]} {[%emt 00:00:21]} 48. a5 {[%clk 00:00:53]} {[%emt
00:00:03]} Rh1 {[%clk 00:04:31]} {[%emt 00:00:06]} 49. Rh8 {[%clk 00:00:47]}
{[%emt 00:00:16]} Ra1 {[%clk 00:04:29]} {[%emt 00:00:13]} 50. Kb5 {[%clk
00:00:42]} {[%emt 00:00:15]} Ke4 {[%clk 00:04:25]} {[%emt 00:00:14]} 51. Rg8
{[%clk 00:00:45]} {[%emt 00:00:07]} f5 {[%clk 00:04:34]} 52. h6 {[%clk
00:00:54]} {[%emt 00:00:01]} Rb1+ {[%clk 00:04:27]} {[%emt 00:00:17]} 53. Kc6
{[%clk 00:00:59]} {[%emt 00:00:05]} Rh1 {[%clk 00:04:26]} {[%emt 00:00:11]} 54.
Rg6 {[%clk 00:01:01]} {[%emt 00:00:07]} f4 {[%clk 00:04:03]} {[%emt 00:00:34]}
55. a6 {[%clk 00:00:40]} {[%emt 00:00:31]} Ra1 {[%clk 00:03:25]} {[%emt
00:00:48]} 56. h7 {[%clk 00:00:40]} {[%emt 00:00:09]} Kf5 {[%clk 00:01:56]}
{[%emt 00:01:39]} 57. Rg8 {[%clk 00:00:42]} {[%emt 00:00:08]} 1-0

[Event "Vastgota Open 2022"]
[Site "Skara stadshotell, Jarnvagsgatan 5, Skara, Sweden"]
[Date "2022.10.30"]
[Round "8.7"]
[White "Wengholm, Anders"]
[Black "Bengtsson, Siv"]
[Result "0-1"]
[TimeControl "30 minutes + 10 seconds per move from move one."]
[WhiteFideId "1704818"]
[BlackFideId "1701673"]
[WhiteElo "2179"]
[BlackElo "1952"]

1. Nf3 {[%clk 00:30:18]} {[%emt 00:53:59]} Nf6 {[%clk 00:30:00]} {[%emt
00:00:20]} 2. c4 {[%clk 00:30:26]} {[%emt 00:00:02]} e6 {[%clk 00:29:43]}
{[%emt 00:00:27]} 3. g3 {[%clk 00:30:26]} {[%emt 00:00:10]} c5 {[%clk
00:28:22]} {[%emt 00:01:32]} 4. Bg2 {[%clk 00:30:30]} {[%emt 00:00:06]} Nc6
{[%clk 00:28:24]} {[%emt 00:00:09]} 5. O-O {[%clk 00:30:32]} {[%emt 00:00:08]}
d5 {[%clk 00:27:58]} {[%emt 00:00:36]} 6. cxd5 {[%clk 00:30:37]} {[%emt
00:00:04]} Nxd5 {[%clk 00:28:02]} {[%emt 00:00:06]} 7. d4 {[%clk 00:30:19]}
{[%emt 00:00:29]} Be7 {[%clk 00:26:45]} {[%emt 00:01:26]} 8. Nc3 {[%clk
00:30:04]} {[%emt 00:00:25]} O-O {[%clk 00:25:32]} {[%emt 00:01:23]} 9. e4
{[%clk 00:29:21]} {[%emt 00:00:52]} Nxc3 {[%clk 00:22:53]} {[%emt 00:02:51]} 10.
bxc3 {[%clk 00:29:29]} {[%emt 00:00:02]} Qa5 {[%clk 00:22:33]} {[%emt
00:00:29]} 11. d5 {[%clk 00:23:06]} {[%emt 00:06:33]} exd5 {[%clk 00:22:07]}
{[%emt 00:00:37]} 12. exd5 {[%clk 00:23:15]} Rd8 {[%clk 00:21:03]} {[%emt
00:01:14]} 13. Bd2 {[%clk 00:22:41]} {[%emt 00:00:43]} Nb8 {[%clk 00:20:54]}
{[%emt 00:00:20]} 14. c4 {[%clk 00:22:31]} {[%emt 00:00:20]} Qc7 {[%clk
00:20:31]} {[%emt 00:00:32]} 15. Qc2 {[%clk 00:22:02]} {[%emt 00:00:40]} Bf6
{[%clk 00:18:49]} {[%emt 00:01:52]} 16. Bf4 {[%clk 00:19:55]} {[%emt 00:02:16]}
Qd7 {[%clk 00:15:50]} {[%emt 00:03:08]} 17. Ng5 {[%clk 00:13:48]} {[%emt
00:06:17]} Bxg5 {[%clk 00:09:52]} {[%emt 00:06:08]} 18. Bxg5 {[%clk 00:13:56]}
{[%emt 00:00:02]} Re8 {[%clk 00:09:55]} {[%emt 00:00:07]} 19. Rfe1 {[%clk
00:13:51]} {[%emt 00:00:15]} f6 {[%clk 00:07:05]} {[%emt 00:03:00]} 20. Bf4
{[%clk 00:12:47]} {[%emt 00:01:15]} Na6 {[%clk 00:06:35]} {[%emt 00:00:40]} 21.
Be4 {[%clk 00:10:35]} {[%emt 00:02:21]} h6 {[%clk 00:05:00]} {[%emt 00:01:45]}
22. Bh7+ {[%clk 00:07:06]} {[%emt 00:03:40]} Kh8 {[%clk 00:05:01]} {[%emt
00:00:08]} 23. Qg6 {[%clk 00:07:07]} {[%emt 00:00:09]} Rf8 {[%clk 00:04:23]}
{[%emt 00:00:48]} 24. Bxh6 {[%clk 00:06:04]} {[%emt 00:01:14]} gxh6 {[%clk
00:03:50]} {[%emt 00:00:43]} 25. Qxh6 {[%clk 00:05:47]} {[%emt 00:00:26]} Qg7
{[%clk 00:03:58]} {[%emt 00:00:02]} 26. Qd2 {[%clk 00:05:19]} {[%emt 00:00:40]}
Qxh7 {[%clk 00:03:23]} {[%emt 00:00:44]} 27. d6 {[%clk 00:05:20]} {[%emt
00:00:09]} Bd7 {[%clk 00:02:52]} {[%emt 00:00:41]} 0-1